Department Family,Date Paid,Expense Type,Expense Area,Supplier,Transaction Number,Amount,Vat Inclusive
Crown Prosecution Service ,02/08/23,Landlord service charge,Estate and FM: Programme,Government Property Agency London,00000001/22254,"24,154.04",
Crown Prosecution Service ,02/08/23,National non domestic rates,Estate and FM: Programme,Government Property Agency London,00000001/22254,708.00,Y
Crown Prosecution Service ,02/08/23,Lease liability non current lease payments,Balance Sheet,Government Property Agency London,00000001/22254,"5,706.36",Y
Crown Prosecution Service ,02/08/23,Property management fees,Estate and FM: Programme,Government Property Agency London,00000001/22254,"39,271.51",Y
Crown Prosecution Service ,02/08/23,Property management fees,Estate and FM: Programme,Government Property Agency London,00000001/22254,"57,402.60",
Crown Prosecution Service ,02/08/23,Crown Court Very High Cost Cases Full Scheme,RWD Midlands Wales Unit,Red Lion Chambers (18 RLC),158269THPstage5,"26,528.80",Y
Crown Prosecution Service ,02/08/23,Crown Court Graduated Fee Scheme,Thames and Chiltern Complex Casework Unit,23 Essex Street Chambers,193987 - HUS,"33,902.88",Y
Crown Prosecution Service ,02/08/23,Crown Court Graduated Fee Scheme,Thames and Chiltern Complex Casework Unit,23 Essex Street Chambers,193987 - JAP,"66,193.68",Y
Crown Prosecution Service ,02/08/23,Crown Court Graduated Fee Scheme,London North Crown Court Unit,Foundry Chambers (9-12 Bell Yard),198071/JP,"37,147.80",Y
Crown Prosecution Service ,02/08/23,Crown Court Very High Cost Cases Full Scheme,SEOC Team 2,Foundry Chambers (9-12 Bell Yard),200241/MC,"27,471.20",Y
Crown Prosecution Service ,02/08/23,Crown Court Graduated Fee Scheme,South West Complex Casework Unit,Albion Chambers,201247 ERH ,"43,947.60",Y
Crown Prosecution Service ,02/08/23,Crown Court Graduated Fee Scheme,North East Crown Court Unit,23 Essex Street Chambers,204476-FF,"38,560.80",Y
Crown Prosecution Service ,02/08/23,Crown Court Graduated Fee Scheme,London South Complex Casework Unit,2 Kings Bench Walk London,299230-OPW,"35,896.56",
Crown Prosecution Service ,02/08/23,UK National rail travel,Chief Finance Officer,Clarity Travel Management,CPSHQ160723,246.90,
Crown Prosecution Service ,02/08/23,UK National rail travel,Victim Transformation Prog,Clarity Travel Management,CPSHQ160723,292.00,
Crown Prosecution Service ,02/08/23,UK National rail travel,Corporate Communication,Clarity Travel Management,CPSHQ160723,725.60,
Crown Prosecution Service ,02/08/23,UK National rail travel,PF Resourcing,Clarity Travel Management,CPSHQ160723,"1,560.00",
Crown Prosecution Service ,02/08/23,UK National rail travel,DID Central Leadership Team,Clarity Travel Management,CPSHQ160723,984.80,
Crown Prosecution Service ,02/08/23,UK National rail travel,PF Learning and Development General,Clarity Travel Management,CPSHQ160723,629.40,
Crown Prosecution Service ,02/08/23,UK National rail travel,Operational Business Support,Clarity Travel Management,CPSHQ160723,"1,145.60",
Crown Prosecution Service ,02/08/23,UK National rail travel,PF HR Business Partnering,Clarity Travel Management,CPSHQ160723,582.10,
Crown Prosecution Service ,02/08/23,UK National rail travel,PF Legal Training,Clarity Travel Management,CPSHQ160723,149.70,
Crown Prosecution Service ,02/08/23,UK National rail travel,DTUS,Clarity Travel Management,CPSHQ160723,163.50,
Crown Prosecution Service ,02/08/23,UK National rail travel,CFO Estates,Clarity Travel Management,CPSHQ160723,685.10,
Crown Prosecution Service ,02/08/23,UK National rail travel,Strategy and Policy,Clarity Travel Management,CPSHQ160723,"1,769.00",
Crown Prosecution Service ,02/08/23,UK National rail travel,CFO Financial Reporting,Clarity Travel Management,CPSHQ160723,280.90,
Crown Prosecution Service ,02/08/23,UK National rail travel,PF HR Systems and Information,Clarity Travel Management,CPSHQ160723,287.40,
Crown Prosecution Service ,02/08/23,UK National rail travel,DID Operational Process,Clarity Travel Management,CPSHQ160723,647.50,
Crown Prosecution Service ,02/08/23,UK National rail travel,DID Security and Information,Clarity Travel Management,CPSHQ160723,"1,748.90",
Crown Prosecution Service ,02/08/23,UK National rail travel,Press Office,Clarity Travel Management,CPSHQ160723,113.40,
Crown Prosecution Service ,02/08/23,UK National rail travel,CFO Commercial,Clarity Travel Management,CPSHQ160723,658.40,
Crown Prosecution Service ,02/08/23,UK National rail travel,PF People and Business Change,Clarity Travel Management,CPSHQ160723,766.90,
Crown Prosecution Service ,02/08/23,UK National rail travel,Permanent Transfer Costs,Clarity Travel Management,CPSHQ160723,192.30,
Crown Prosecution Service ,02/08/23,UK National rail travel,DID DTS Technology,Clarity Travel Management,CPSHQ160723,417.00,
Crown Prosecution Service ,02/08/23,UK National rail travel,Private Office,Clarity Travel Management,CPSHQ160723,662.10,
Crown Prosecution Service ,02/08/23,UK National rail travel,PF HR Operations,Clarity Travel Management,CPSHQ160723,"1,015.20",
Crown Prosecution Service ,02/08/23,UK Hotels,DID DTS Technology,Clarity Travel Management,CPSHQ160723,435.99,Y
Crown Prosecution Service ,02/08/23,UK Hotels,PF People and Business Change,Clarity Travel Management,CPSHQ160723,620.41,Y
Crown Prosecution Service ,02/08/23,UK Hotels,Director of Legal Services,Clarity Travel Management,CPSHQ160723,677.85,Y
Crown Prosecution Service ,02/08/23,UK Hotels,PF HR Business Partnering,Clarity Travel Management,CPSHQ160723,192.97,Y
Crown Prosecution Service ,02/08/23,UK Hotels,CFO Commercial,Clarity Travel Management,CPSHQ160723,610.92,Y
Crown Prosecution Service ,02/08/23,UK Hotels,DID DTS Change,Clarity Travel Management,CPSHQ160723,245.96,Y
Crown Prosecution Service ,02/08/23,UK Hotels,DID Operational Process,Clarity Travel Management,CPSHQ160723,452.90,Y
Crown Prosecution Service ,02/08/23,UK Hotels,DID Central Leadership Team,Clarity Travel Management,CPSHQ160723,302.96,Y
Crown Prosecution Service ,02/08/23,UK Hotels,Victim Transformation Prog,Clarity Travel Management,CPSHQ160723,89.48,Y
Crown Prosecution Service ,02/08/23,UK Hotels,DID Security and Information,Clarity Travel Management,CPSHQ160723,311.97,Y
Crown Prosecution Service ,02/08/23,UK Hotels,PF HR Business Management,Clarity Travel Management,CPSHQ160723,102.98,Y
Crown Prosecution Service ,02/08/23,UK Hotels,PF HR Systems and Information,Clarity Travel Management,CPSHQ160723,216.96,Y
Crown Prosecution Service ,02/08/23,UK Hotels,Operational Business Support,Clarity Travel Management,CPSHQ160723,504.56,Y
Crown Prosecution Service ,02/08/23,UK Hotels,Strategy and Policy,Clarity Travel Management,CPSHQ160723,462.92,Y
Crown Prosecution Service ,02/08/23,UK Hotels,Central Legal Training Team,Clarity Travel Management,CPSHQ160723,"3,107.87",Y
Crown Prosecution Service ,02/08/23,UK Hotels,DTUS,Clarity Travel Management,CPSHQ160723,303.95,Y
Crown Prosecution Service ,02/08/23,UK Hotels,Corporate Communication,Clarity Travel Management,CPSHQ160723,384.94,Y
Crown Prosecution Service ,02/08/23,UK Hotels,Permanent Transfer Costs,Clarity Travel Management,CPSHQ160723,332.96,Y
Crown Prosecution Service ,02/08/23,UK Hotels,CFO Finance Operations,Clarity Travel Management,CPSHQ160723,107.48,Y
Crown Prosecution Service ,02/08/23,UK Hotels,Compliance and Assurance,Clarity Travel Management,CPSHQ160723,174.48,Y
Crown Prosecution Service ,02/08/23,UK National rail travel,Central Operational Training,Clarity Travel Management,CPSHQ160723,83.00,
Crown Prosecution Service ,02/08/23,UK National rail travel,Operational Performance,Clarity Travel Management,CPSHQ160723,"1,630.60",
Crown Prosecution Service ,02/08/23,UK National rail travel,DID DTS Change,Clarity Travel Management,CPSHQ160723,"3,684.60",
Crown Prosecution Service ,02/08/23,UK National rail travel,CFO Finance Operations,Clarity Travel Management,CPSHQ160723,340.30,
Crown Prosecution Service ,02/08/23,UK National rail travel,Operational Change,Clarity Travel Management,CPSHQ160723,974.80,
Crown Prosecution Service ,02/08/23,UK National rail travel,CFO Estates,Clarity Travel Management,CPSHQ230723,224.20,
Crown Prosecution Service ,02/08/23,UK National rail travel,PF HR Business Management,Clarity Travel Management,CPSHQ230723,17.70,
Crown Prosecution Service ,02/08/23,UK National rail travel,CFO Strategic Financial Planning,Clarity Travel Management,CPSHQ230723,232.50,
Crown Prosecution Service ,02/08/23,UK National rail travel,Central Legal Training Team,Clarity Travel Management,CPSHQ230723,99.50,
Crown Prosecution Service ,02/08/23,UK National rail travel,Press Office,Clarity Travel Management,CPSHQ230723,285.90,
Crown Prosecution Service ,02/08/23,UK National rail travel,DID Operational Process,Clarity Travel Management,CPSHQ230723,"1,315.80",
Crown Prosecution Service ,02/08/23,UK National rail travel,PF People and Business Change,Clarity Travel Management,CPSHQ230723,362.50,
Crown Prosecution Service ,02/08/23,UK National rail travel,DID DTS Change,Clarity Travel Management,CPSHQ230723,"2,496.70",
Crown Prosecution Service ,02/08/23,UK National rail travel,PF HR Business Partnering,Clarity Travel Management,CPSHQ230723,957.55,
Crown Prosecution Service ,02/08/23,UK National rail travel,PF Learning and Development General,Clarity Travel Management,CPSHQ230723,"1,977.60",
Crown Prosecution Service ,02/08/23,UK National rail travel,Court Business Unit,Clarity Travel Management,CPSHQ230723,918.20,
Crown Prosecution Service ,02/08/23,UK National rail travel,CFO Finance Operations,Clarity Travel Management,CPSHQ230723,507.80,
Crown Prosecution Service ,02/08/23,UK National rail travel,Central Operational Training,Clarity Travel Management,CPSHQ230723,549.80,
Crown Prosecution Service ,02/08/23,UK National rail travel,Permanent Transfer Costs,Clarity Travel Management,CPSHQ230723,373.30,
Crown Prosecution Service ,02/08/23,UK National rail travel,Compliance and Assurance,Clarity Travel Management,CPSHQ230723,356.00,
Crown Prosecution Service ,02/08/23,UK National rail travel,DID Security and Information,Clarity Travel Management,CPSHQ230723,"1,343.40",
Crown Prosecution Service ,02/08/23,UK National rail travel,Operational Performance,Clarity Travel Management,CPSHQ230723,"2,012.70",
Crown Prosecution Service ,02/08/23,UK National rail travel,Corporate Communication,Clarity Travel Management,CPSHQ230723,274.10,
Crown Prosecution Service ,02/08/23,UK National rail travel,PF Resourcing,Clarity Travel Management,CPSHQ230723,"1,128.20",
Crown Prosecution Service ,02/08/23,UK National rail travel,CFO Commercial,Clarity Travel Management,CPSHQ230723,587.15,
Crown Prosecution Service ,02/08/23,UK National rail travel,PF HR Operations,Clarity Travel Management,CPSHQ230723,143.40,
Crown Prosecution Service ,02/08/23,UK National rail travel,Operational Change,Clarity Travel Management,CPSHQ230723,"2,669.30",
Crown Prosecution Service ,02/08/23,UK National rail travel,Director of Legal Services,Clarity Travel Management,CPSHQ230723,708.30,
Crown Prosecution Service ,02/08/23,UK Hotels,DID DTS Technology,Clarity Travel Management,CPSHQ230723,93.00,Y
Crown Prosecution Service ,02/08/23,UK Hotels,Permanent Transfer Costs,Clarity Travel Management,CPSHQ230723,344.20,Y
Crown Prosecution Service ,02/08/23,UK Hotels,Operational Performance,Clarity Travel Management,CPSHQ230723,104.00,Y
Crown Prosecution Service ,02/08/23,UK Hotels,DID DTS Change,Clarity Travel Management,CPSHQ230723,"4,588.75",Y
Crown Prosecution Service ,02/08/23,UK Hotels,PF Resourcing,Clarity Travel Management,CPSHQ230723,183.00,Y
Crown Prosecution Service ,02/08/23,UK Hotels,Central Operational Training,Clarity Travel Management,CPSHQ230723,254.49,Y
Crown Prosecution Service ,02/08/23,UK Hotels,DID Central Leadership Team,Clarity Travel Management,CPSHQ230723,264.00,Y
Crown Prosecution Service ,02/08/23,UK Hotels,PF HR Business Partnering,Clarity Travel Management,CPSHQ230723,152.24,Y
Crown Prosecution Service ,02/08/23,UK Hotels,PF Learning and Development General,Clarity Travel Management,CPSHQ230723,277.00,Y
Crown Prosecution Service ,02/08/23,UK Hotels,Central Legal Training Team,Clarity Travel Management,CPSHQ230723,"1,183.80",Y
Crown Prosecution Service ,02/08/23,UK Hotels,Operational Change,Clarity Travel Management,CPSHQ230723,320.80,Y
Crown Prosecution Service ,02/08/23,UK Hotels,DID Operational Process,Clarity Travel Management,CPSHQ230723,293.00,Y
Crown Prosecution Service ,02/08/23,UK Hotels,Operational Business Support,Clarity Travel Management,CPSHQ230723,245.00,Y
Crown Prosecution Service ,02/08/23,UK Hotels,Court Business Unit,Clarity Travel Management,CPSHQ230723,"1,061.27",Y
Crown Prosecution Service ,02/08/23,UK Hotels,PF People and Business Change,Clarity Travel Management,CPSHQ230723,717.00,Y
Crown Prosecution Service ,02/08/23,UK Hotels,CFO Estates,Clarity Travel Management,CPSHQ230723,80.00,Y
Crown Prosecution Service ,02/08/23,UK Hotels,CFO Commercial,Clarity Travel Management,CPSHQ230723,186.00,Y
Crown Prosecution Service ,02/08/23,UK Hotels,DID Security and Information,Clarity Travel Management,CPSHQ230723,"1,540.71",Y
Crown Prosecution Service ,02/08/23,UK Hotels,CFO Finance Operations,Clarity Travel Management,CPSHQ230723,171.00,Y
Crown Prosecution Service ,02/08/23,UK National rail travel,DID Central Leadership Team,Clarity Travel Management,CPSHQ230723,557.90,
Crown Prosecution Service ,02/08/23,UK National rail travel,Strategy and Policy,Clarity Travel Management,CPSHQ230723,"1,244.20",
Crown Prosecution Service ,02/08/23,UK National rail travel,DID DTS Technology,Clarity Travel Management,CPSHQ230723,386.40,
Crown Prosecution Service ,02/08/23,UK National rail travel,Operational Business Support,Clarity Travel Management,CPSHQ230723,111.00,
Crown Prosecution Service ,02/08/23,UK National rail travel,PF Legal Training,Clarity Travel Management,CPSHQ230723,136.60,
Crown Prosecution Service ,02/08/23,UK National rail travel,PF HR Systems and Information,Clarity Travel Management,CPSHQ230723,270.00,
Crown Prosecution Service ,02/08/23,Crown Court Graduated Fee Scheme,London South Complex Casework Unit,QEB Hollis Whiteman Chambers,DJE 107538 A,"71,386.32",Y
Crown Prosecution Service ,02/08/23,Crown Court Graduated Fee Scheme,London North Crown Court Unit,2 Harcourt Buildings,NAL/115954,"27,221.40",Y
Crown Prosecution Service ,02/08/23,Crown Court Graduated Fee Scheme,London North Complex Casework Unit,5 King's Bench Walk,RK 173145,"36,352.20",Y
Crown Prosecution Service ,03/08/23,Lease liability non current lease payments,Balance Sheet,Government Property Agency London,00000001/26021,"26,640.00",
Crown Prosecution Service ,03/08/23,National non domestic rates,Estate and FM: Programme,Government Property Agency London,00000001/26021,"12,395.94",
Crown Prosecution Service ,03/08/23,Property management fees,Estate and FM: Programme,Government Property Agency London,00000001/26021,"7,521.64",
Crown Prosecution Service ,03/08/23,Landlord service charge,Estate and FM: Programme,Government Property Agency London,00000001/26021,"19,884.28",
Crown Prosecution Service ,03/08/23,Landlord service charge,Estate and FM: Programme,Government Property Agency London,00000001/26244,"7,512.08",
Crown Prosecution Service ,03/08/23,Lease liability non current lease payments,Balance Sheet,Government Property Agency London,00000001/26244,"8,750.00",
Crown Prosecution Service ,03/08/23,National non domestic rates,Estate and FM: Programme,Government Property Agency London,00000001/26244,"3,493.00",
Crown Prosecution Service ,03/08/23,Property management fees,Estate and FM: Programme,Government Property Agency London,00000001/26244,"5,262.14",
Crown Prosecution Service ,03/08/23,Crown Court Graduated Fee Scheme,West Midlands Complex Casework Unit,36 Bedford Row,192746/DT3,"44,012.92",Y
Crown Prosecution Service ,03/08/23,Crown Court Graduated Fee Scheme,Yorks and Humbs CC Legal,Broadway House Chambers,229067-1/SW,"41,513.16",Y
Crown Prosecution Service ,03/08/23,Other publicity and media costs,PF Operational HR Costs,Linkedin Dublin,78111685544,"159,616.30",
Crown Prosecution Service ,04/08/23,Crown Court Graduated Fee Scheme,South West Complex Casework Unit,Albion Chambers,199449-1-CG,"30,336.07",Y
Crown Prosecution Service ,04/08/23,Crown Court Graduated Fee Scheme,East Midlands Crown Court Section,36 Bedford Row,216113-JEC/TP,"52,882.20",Y
Crown Prosecution Service ,07/08/23,Crown Court Graduated Fee Scheme,East Midlands Crown Court Section,36 Bedford Row,216113 TP/SS/KJE,"35,557.08",Y
Crown Prosecution Service ,07/08/23,Recoverable VAT control,Balance Sheet,Xerox (UK) Ltd,900229991,"4,370.00",Y
Crown Prosecution Service ,07/08/23,Short term leases from 2 to 12 months: IT and Equipment,Print Contract,Xerox (UK) Ltd,900229991,"21,850.00",
Crown Prosecution Service ,07/08/23,Crown Court Graduated Fee Scheme,South East Crown Court,2 Harcourt Buildings,AO-116377,"25,928.21",Y
Crown Prosecution Service ,07/08/23,Recoverable VAT control,Balance Sheet,CGI IT UK Ltd,GB014109861,"53,893.80",Y
Crown Prosecution Service ,07/08/23,Intangibles asset purchase clearing CMS,DTS ICT Capital Expenditure,CGI IT UK Ltd,GB014109861,"269,469.00",
Crown Prosecution Service ,07/08/23,Intangibles asset purchase clearing CMS,DTS ICT Capital Expenditure,CGI IT UK Ltd,GB014109862,"56,146.00",
Crown Prosecution Service ,07/08/23,Recoverable VAT control,Balance Sheet,CGI IT UK Ltd,GB014109862,"11,229.20",Y
Crown Prosecution Service ,07/08/23,Crown Court Graduated Fee Scheme,South East Complex Casework Unit,2 Harcourt Buildings,JK-117816,"27,181.80",Y
Crown Prosecution Service ,07/08/23,Crown Court Graduated Fee Scheme,South East Crown Court,2 Harcourt Buildings,PCA/116377,"51,051.24",Y
Crown Prosecution Service ,08/08/23,Advice/PreSending Very High Cost Cases Full Scheme,RWD North Unit,St Pauls Chambers Leeds,140408 INc 42 HWA,"33,613.80",Y
Crown Prosecution Service ,08/08/23,Crown Court Graduated Fee Scheme,South East Crown Court,6 Pump Court The Chambers of Mr Stephen Hockman,163614/DS,"37,130.76",Y
Crown Prosecution Service ,08/08/23,Crown Court Graduated Fee Scheme,South East Crown Court,6 Pump Court The Chambers of Mr Stephen Hockman,163614/RB,"63,720.90",Y
Crown Prosecution Service ,08/08/23,Crown Court Graduated Fee Scheme,Cymru Wales RASSO unit,9 Park Place Chambers,334965 MR F,"29,316.24",Y
Crown Prosecution Service ,08/08/23,UK Hotels,Director of Legal Services,Clarity Travel Management,CPSHQ060823,156.00,Y
Crown Prosecution Service ,08/08/23,UK Hotels,PF Legal Training,Clarity Travel Management,CPSHQ060823,76.49,Y
Crown Prosecution Service ,08/08/23,UK Hotels,DID Operational Process,Clarity Travel Management,CPSHQ060823,460.66,Y
Crown Prosecution Service ,08/08/23,UK Hotels,DTUS,Clarity Travel Management,CPSHQ060823,191.96,Y
Crown Prosecution Service ,08/08/23,UK Hotels,DID DTS Change,Clarity Travel Management,CPSHQ060823,"1,294.76",Y
Crown Prosecution Service ,08/08/23,UK Hotels,Central Legal Training Team,Clarity Travel Management,CPSHQ060823,963.60,Y
Crown Prosecution Service ,08/08/23,UK Hotels,Press Office,Clarity Travel Management,CPSHQ060823,725.00,Y
Crown Prosecution Service ,08/08/23,UK Hotels,DID Central Leadership Team,Clarity Travel Management,CPSHQ060823,"2,788.63",Y
Crown Prosecution Service ,08/08/23,UK Hotels,CFO Commercial,Clarity Travel Management,CPSHQ060823,733.94,Y
Crown Prosecution Service ,08/08/23,UK Hotels,DID Security and Information,Clarity Travel Management,CPSHQ060823,203.15,Y
Crown Prosecution Service ,08/08/23,UK Hotels,CFO Finance Operations,Clarity Travel Management,CPSHQ060823,88.00,Y
Crown Prosecution Service ,08/08/23,UK Hotels,PF Resourcing,Clarity Travel Management,CPSHQ060823,496.00,Y
Crown Prosecution Service ,08/08/23,UK Hotels,PF Learning and Development General,Clarity Travel Management,CPSHQ060823,353.10,Y
Crown Prosecution Service ,08/08/23,UK Hotels,Central Operational Training,Clarity Travel Management,CPSHQ060823,246.00,Y
Crown Prosecution Service ,08/08/23,UK Hotels,Compliance and Assurance,Clarity Travel Management,CPSHQ060823,93.60,Y
Crown Prosecution Service ,08/08/23,UK Hotels,Operational Performance,Clarity Travel Management,CPSHQ060823,219.79,Y
Crown Prosecution Service ,08/08/23,UK Hotels,Strategy and Policy,Clarity Travel Management,CPSHQ060823,615.00,Y
Crown Prosecution Service ,08/08/23,UK Hotels,PF HR Business Partnering,Clarity Travel Management,CPSHQ060823,295.00,Y
Crown Prosecution Service ,08/08/23,UK Hotels,DID DTS Technology,Clarity Travel Management,CPSHQ060823,748.20,Y
Crown Prosecution Service ,08/08/23,UK Hotels,Permanent Transfer Costs,Clarity Travel Management,CPSHQ060823,166.00,Y
Crown Prosecution Service ,08/08/23,UK Hotels,CFO Financial Reporting,Clarity Travel Management,CPSHQ060823,258.00,Y
Crown Prosecution Service ,08/08/23,UK National rail travel,Corporate Communication,Clarity Travel Management,CPSHQ060823,677.10,
Crown Prosecution Service ,08/08/23,UK National rail travel,Central Operational Training,Clarity Travel Management,CPSHQ060823,377.90,
Crown Prosecution Service ,08/08/23,UK National rail travel,PF Analytics and Workforce Plan,Clarity Travel Management,CPSHQ060823,192.70,
Crown Prosecution Service ,08/08/23,UK National rail travel,CFO Strategic Financial Planning,Clarity Travel Management,CPSHQ060823,110.00,
Crown Prosecution Service ,08/08/23,UK National rail travel,CFO Commercial,Clarity Travel Management,CPSHQ060823,360.80,
Crown Prosecution Service ,08/08/23,UK Hotels,PF HR Operations,Clarity Travel Management,CPSHQ060823,2.50,
Crown Prosecution Service ,08/08/23,UK National rail travel,PF Learning and Development General,Clarity Travel Management,CPSHQ060823,41.00,
Crown Prosecution Service ,08/08/23,UK National rail travel,PF People and Business Change,Clarity Travel Management,CPSHQ060823,657.30,
Crown Prosecution Service ,08/08/23,UK National rail travel,Director of Legal Services,Clarity Travel Management,CPSHQ060823,202.50,
Crown Prosecution Service ,08/08/23,UK National rail travel,DID DTS Change,Clarity Travel Management,CPSHQ060823,"2,823.65",
Crown Prosecution Service ,08/08/23,UK National rail travel,PF HR Business Partnering,Clarity Travel Management,CPSHQ060823,350.10,
Crown Prosecution Service ,08/08/23,UK National rail travel,Private Office,Clarity Travel Management,CPSHQ060823,785.70,
Crown Prosecution Service ,08/08/23,UK National rail travel,Strategy and Policy,Clarity Travel Management,CPSHQ060823,329.90,
Crown Prosecution Service ,08/08/23,UK National rail travel,Permanent Transfer Costs,Clarity Travel Management,CPSHQ060823,208.40,
Crown Prosecution Service ,08/08/23,UK National rail travel,DID DTS Technology,Clarity Travel Management,CPSHQ060823,976.30,
Crown Prosecution Service ,08/08/23,UK National rail travel,CFO Estates,Clarity Travel Management,CPSHQ060823,140.30,
Crown Prosecution Service ,08/08/23,UK National rail travel,PF HR Operations,Clarity Travel Management,CPSHQ060823,118.80,
Crown Prosecution Service ,08/08/23,UK National rail travel,DID Central Leadership Team,Clarity Travel Management,CPSHQ060823,534.30,
Crown Prosecution Service ,08/08/23,UK National rail travel,Operational Performance,Clarity Travel Management,CPSHQ060823,140.50,
Crown Prosecution Service ,08/08/23,UK National rail travel,Central Legal Training Team,Clarity Travel Management,CPSHQ060823,644.70,
Crown Prosecution Service ,08/08/23,UK National rail travel,DID Security and Information,Clarity Travel Management,CPSHQ060823,511.20,
Crown Prosecution Service ,08/08/23,UK National rail travel,Press Office,Clarity Travel Management,CPSHQ060823,113.40,
Crown Prosecution Service ,08/08/23,UK National rail travel,PF Resourcing,Clarity Travel Management,CPSHQ060823,478.70,
Crown Prosecution Service ,08/08/23,UK National rail travel,Court Business Unit,Clarity Travel Management,CPSHQ060823,364.20,
Crown Prosecution Service ,08/08/23,UK National rail travel,Compliance and Assurance,Clarity Travel Management,CPSHQ060823,777.00,
Crown Prosecution Service ,08/08/23,UK National rail travel,DID Operational Process,Clarity Travel Management,CPSHQ060823,357.10,
Crown Prosecution Service ,08/08/23,UK National rail travel,Victim Transformation Prog,Clarity Travel Management,CPSHQ060823,281.30,
Crown Prosecution Service ,08/08/23,UK National rail travel,Operational Change,Clarity Travel Management,CPSHQ060823,"2,302.40",
Crown Prosecution Service ,08/08/23,UK National rail travel,CFO Finance Operations,Clarity Travel Management,CPSHQ060823,42.90,
Crown Prosecution Service ,08/08/23,Crown Court Very High Cost Cases Full Scheme,RWD Midlands Wales Unit,QEB Hollis Whiteman Chambers,WBKC 111389 A,"30,195.00",Y
Crown Prosecution Service ,09/08/23,Advice/PreSending Very High Cost Cases Full Scheme,RWD North Unit,Red Lion Chambers (18 RLC),140408 Inc42 JBE,"27,165.60",Y
Crown Prosecution Service ,09/08/23,Crown Court Graduated Fee Scheme,London North Complex Casework Unit,23 Essex Street Chambers,199920 - ALG 2,"45,557.52",Y
Crown Prosecution Service ,09/08/23,Crown Court Very High Cost Cases Full Scheme,Yorkshire and Humberside Complex Casework Unit,Park Square Barristers (No 6 and Sovereign merged),508597/,"27,576.00",Y
Crown Prosecution Service ,09/08/23,IT non capital software licences,Legal Reference and ICT Licenses,Avature Limited London,UK04076,"76,560.00",Y
Crown Prosecution Service ,10/08/23,Crown Court Graduated Fee Scheme,Mersey Cheshire Crown Court Unit,Linenhall Chambers,324810/3,"40,492.80",Y
Crown Prosecution Service ,10/08/23,Crown Court Very High Cost Cases Full Scheme,Cymru Wales Complex Casework Unit,9 Park Place Chambers,327033  MC  0808,"42,528.00",Y
Crown Prosecution Service ,10/08/23,Crown Court Graduated Fee Scheme,Mersey Cheshire RASSO Unit,Church Court Chambers,75683,"37,345.93",Y
Crown Prosecution Service ,10/08/23,IT non capital software licences,Legal Reference and ICT Licenses,Egress Sotware Technologies Ltd London,INVUK24145,"519,720.00",Y
Crown Prosecution Service ,10/08/23,Recoverable VAT control,Balance Sheet,Jaggaer London,INVUK2469,"28,521.60",Y
Crown Prosecution Service ,10/08/23,IT non capital equipment and consumables,CFO Commercial,Jaggaer London,INVUK2469,"142,608.01",
Crown Prosecution Service ,11/08/23,Crown Court Graduated Fee Scheme,South East Complex Casework Unit,6 Kings Bench Walk- Chambers of D Fisher & D Perry,104773  2,"42,695.33",Y
Crown Prosecution Service ,14/08/23,Crown Court Graduated Fee Scheme,London North Complex Casework Unit,6 Kings Bench Walk- Chambers of D Fisher & D Perry,100991,"45,250.80",Y
Crown Prosecution Service ,14/08/23,Crown Court Graduated Fee Scheme,London North Complex Casework Unit,6 Kings Bench Walk- Chambers of D Fisher & D Perry,102848 2,"63,230.88",Y
Crown Prosecution Service ,14/08/23,Crown Court Graduated Fee Scheme,London North Complex Casework Unit,6 Kings Bench Walk- Chambers of D Fisher & D Perry,102848 2,"26,427.60",Y
Crown Prosecution Service ,14/08/23,Crown Court Graduated Fee Scheme,London North Complex Casework Unit,6 Kings Bench Walk- Chambers of D Fisher & D Perry,102849 3,"56,280.00",Y
Crown Prosecution Service ,14/08/23,Crown Court Graduated Fee Scheme,London North Complex Casework Unit,2 Hare Court Chambers -Chambers of Orlando Pownall,121939 / ,"90,853.20",Y
Crown Prosecution Service ,14/08/23,Crown Court Graduated Fee Scheme,London North Complex Casework Unit,Nine Bedford Row (9 Bedford Row),148225jb2,"28,544.40",Y
Crown Prosecution Service ,14/08/23,Crown Court Graduated Fee Scheme,London North Crown Court Unit,Foundry Chambers (9-12 Bell Yard),193452/PS - 1,"35,702.64",Y
Crown Prosecution Service ,14/08/23,Crown Court Graduated Fee Scheme,RWD North Unit,St Philips Chambers,656245 KP,"31,906.24",Y
Crown Prosecution Service ,14/08/23,Crown Court Graduated Fee Scheme,RWD North Unit,St Philips Chambers,656245 RPAKC,"60,642.20",Y
Crown Prosecution Service ,14/08/23,Crown Court Graduated Fee Scheme,London North Complex Casework Unit,5 King's Bench Walk,LO 177259 1,"30,188.40",Y
Crown Prosecution Service ,14/08/23,Crown Court Graduated Fee Scheme,London North Complex Casework Unit,5 King's Bench Walk,LO 177259 2,"47,578.80",Y
Crown Prosecution Service ,14/08/23,Crown Court Graduated Fee Scheme,London North Complex Casework Unit,Deka Chambers Ltd,TL382957,"60,385.80",Y
Crown Prosecution Service ,14/08/23,Crown Court Graduated Fee Scheme,London North Complex Casework Unit,Deka Chambers Ltd,TL382957A,"83,180.28",Y
Crown Prosecution Service ,15/08/23,Crown Court Graduated Fee Scheme,London South Crown Court Unit,Foundry Chambers (9-12 Bell Yard),191449/ND,"29,240.70",Y
Crown Prosecution Service ,15/08/23,Recoverable VAT control,Balance Sheet,Oracle Corporation UK Ltd,460098216,"18,640.35",Y
Crown Prosecution Service ,15/08/23,IT non capital software licences,Legal Reference and ICT Licenses,Oracle Corporation UK Ltd,460098216,"93,201.77",
Crown Prosecution Service ,15/08/23,Recoverable VAT control,Balance Sheet,CGI IT UK Ltd,GB014111165,"4,198.36",Y
Crown Prosecution Service ,15/08/23,IT services,Apps and Hosting Contract,CGI IT UK Ltd,GB014111165,"20,991.82",
Crown Prosecution Service ,15/08/23,Recoverable VAT control,Balance Sheet,CGI IT UK Ltd,GB014111166,"215,958.02",Y
Crown Prosecution Service ,15/08/23,IT services,Apps and Hosting Contract,CGI IT UK Ltd,GB014111166,"1,079,790.09",
Crown Prosecution Service ,15/08/23,IT services,DTS Programme Project Cost,CGI IT UK Ltd,GB014111171,"36,103.34",Y
Crown Prosecution Service ,15/08/23,IT non capital software licences,Legal Reference and ICT Licenses,Outsystems LTD London,INVGB202300216,"238,908.00",Y
Crown Prosecution Service ,15/08/23,Crown Court Graduated Fee Scheme,London North Complex Casework Unit,QEB Hollis Whiteman Chambers,PRA 109652 B,"41,841.90",Y
Crown Prosecution Service ,15/08/23,General Professional Services,DTS Programme Project Cost,Bloom Procurement Services Ltd Gateshead,SIN045078,"42,442.10",Y
Crown Prosecution Service ,16/08/23,Crown Court Graduated Fee Scheme,London North Crown Court Unit,5 Paper Buildings,113955/MMKC,"30,595.92",Y
Crown Prosecution Service ,16/08/23,Crown Court Graduated Fee Scheme,RWD North Unit,Guildhall Chambers Bristol,195416  MC,"27,665.16",Y
Crown Prosecution Service ,16/08/23,Crown Court Graduated Fee Scheme,North West Crown Court Hub,Lincoln House Chambers,247639 JOA TR,"27,662.04",Y
Crown Prosecution Service ,16/08/23,IT services,Other IT costs,Lumen Technologies UK Ltd,652031991/1154497,"51,727.82",Y
Crown Prosecution Service ,16/08/23,Advice/PreSending Very High Cost Cases Full Scheme,Special Crime Unit London,6 Kings Bench Walk- Chambers of D Fisher & D Perry,96616 27,"26,166.00",Y
Crown Prosecution Service ,17/08/23,Crown Court Graduated Fee Scheme,Yorkshire and Humberside Complex Casework Unit,Broadway House Chambers,220500-2/PJH,"40,412.40",Y
Crown Prosecution Service ,17/08/23,Crown Court Graduated Fee Scheme,Wessex Crown Court Unit,Pump Court Chambers - 3 Pump Court,273434-EF,"32,579.04",Y
Crown Prosecution Service ,17/08/23,Crown Court Very High Cost Cases Full Scheme,East Midlands Complex Casework Unit,Exchange Chambers Leeds ,541980 CTE JAN/MAR23,"74,968.98",Y
Crown Prosecution Service ,17/08/23,Crown Court Graduated Fee Scheme,Special Crime Unit London,2 Bedford Row Chambers,CA205414/2,"33,129.60",
Crown Prosecution Service ,17/08/23,UK Hotels,PF People and Business Change,Clarity Travel Management,CPSHQ130823,90.00,Y
Crown Prosecution Service ,17/08/23,UK National rail travel,Strategy and Policy,Clarity Travel Management,CPSHQ130823,"3,771.35",
Crown Prosecution Service ,17/08/23,UK Hotels,DID DTS Technology,Clarity Travel Management,CPSHQ130823,"1,406.04",Y
Crown Prosecution Service ,17/08/23,UK Hotels,Permanent Transfer Costs,Clarity Travel Management,CPSHQ130823,651.60,Y
Crown Prosecution Service ,17/08/23,UK Hotels,Operational Performance,Clarity Travel Management,CPSHQ130823,618.90,Y
Crown Prosecution Service ,17/08/23,UK Hotels,Operational Business Support,Clarity Travel Management,CPSHQ130823,516.95,Y
Crown Prosecution Service ,17/08/23,UK Hotels,Central Legal Training Team,Clarity Travel Management,CPSHQ130823,680.60,Y
Crown Prosecution Service ,17/08/23,UK Hotels,CFO Commercial,Clarity Travel Management,CPSHQ130823,173.00,Y
Crown Prosecution Service ,17/08/23,UK Hotels,Operational Change,Clarity Travel Management,CPSHQ130823,"1,075.26",Y
Crown Prosecution Service ,17/08/23,UK Hotels,DID DTS Change,Clarity Travel Management,CPSHQ130823,"3,068.00",Y
Crown Prosecution Service ,17/08/23,UK Hotels,DID Central Leadership Team,Clarity Travel Management,CPSHQ130823,318.00,Y
Crown Prosecution Service ,17/08/23,UK Hotels,PF Learning and Development General,Clarity Travel Management,CPSHQ130823,131.95,Y
Crown Prosecution Service ,17/08/23,UK Hotels,CFO Estates,Clarity Travel Management,CPSHQ130823,93.79,Y
Crown Prosecution Service ,17/08/23,UK National rail travel,PF People and Business Change,Clarity Travel Management,CPSHQ130823,827.00,
Crown Prosecution Service ,17/08/23,UK National rail travel,Operational Business Support,Clarity Travel Management,CPSHQ130823,90.00,
Crown Prosecution Service ,17/08/23,UK National rail travel,Victim Transformation Prog,Clarity Travel Management,CPSHQ130823,82.30,
Crown Prosecution Service ,17/08/23,UK National rail travel,DID Security and Information,Clarity Travel Management,CPSHQ130823,644.70,
Crown Prosecution Service ,17/08/23,UK National rail travel,Press Office,Clarity Travel Management,CPSHQ130823,113.40,
Crown Prosecution Service ,17/08/23,UK National rail travel,Operational Performance,Clarity Travel Management,CPSHQ130823,77.00,
Crown Prosecution Service ,17/08/23,UK National rail travel,Operational Change,Clarity Travel Management,CPSHQ130823,"3,235.90",
Crown Prosecution Service ,17/08/23,UK National rail travel,CFO Commercial,Clarity Travel Management,CPSHQ130823,"2,041.50",
Crown Prosecution Service ,17/08/23,UK National rail travel,Chief Finance Officer,Clarity Travel Management,CPSHQ130823,485.10,
Crown Prosecution Service ,17/08/23,UK National rail travel,DID DTS Technology,Clarity Travel Management,CPSHQ130823,972.70,
Crown Prosecution Service ,17/08/23,UK National rail travel,PF Learning and Development General,Clarity Travel Management,CPSHQ130823,"1,771.40",
Crown Prosecution Service ,17/08/23,UK National rail travel,Central Operational Training,Clarity Travel Management,CPSHQ130823,62.20,
Crown Prosecution Service ,17/08/23,UK National rail travel,PF HR Business Management,Clarity Travel Management,CPSHQ130823,101.00,
Crown Prosecution Service ,17/08/23,UK National rail travel,CFO Estates,Clarity Travel Management,CPSHQ130823,123.50,
Crown Prosecution Service ,17/08/23,UK National rail travel,Central Legal Training Team,Clarity Travel Management,CPSHQ130823,"1,299.80",
Crown Prosecution Service ,17/08/23,UK National rail travel,PF HR Operations,Clarity Travel Management,CPSHQ130823,"1,763.70",
Crown Prosecution Service ,17/08/23,UK National rail travel,DID DTS Change,Clarity Travel Management,CPSHQ130823,"1,444.05",
Crown Prosecution Service ,17/08/23,UK National rail travel,Private Office,Clarity Travel Management,CPSHQ130823,24.00,
Crown Prosecution Service ,17/08/23,UK National rail travel,PF Resourcing,Clarity Travel Management,CPSHQ130823,"2,253.50",
Crown Prosecution Service ,17/08/23,UK National rail travel,Court Business Unit,Clarity Travel Management,CPSHQ130823,334.50,
Crown Prosecution Service ,17/08/23,UK National rail travel,Corporate Communication,Clarity Travel Management,CPSHQ130823,279.90,
Crown Prosecution Service ,17/08/23,UK National rail travel,CFO Strategic Financial Planning,Clarity Travel Management,CPSHQ130823,232.50,
Crown Prosecution Service ,17/08/23,UK National rail travel,DID Central Leadership Team,Clarity Travel Management,CPSHQ130823,997.20,
Crown Prosecution Service ,17/08/23,UK National rail travel,CFO Financial Reporting,Clarity Travel Management,CPSHQ130823,330.10,
Crown Prosecution Service ,17/08/23,UK National rail travel,DID Operational Process,Clarity Travel Management,CPSHQ130823,"1,188.40",
Crown Prosecution Service ,17/08/23,UK National rail travel,PF HR Business Partnering,Clarity Travel Management,CPSHQ130823,326.40,
Crown Prosecution Service ,17/08/23,IT services,DTS Programme Project Cost,CGI IT UK Ltd,GB014111306,"28,908.92",Y
Crown Prosecution Service ,17/08/23,IT services,DTS Programme Project Cost,CGI IT UK Ltd,GB014111371,"26,879.28",Y
Crown Prosecution Service ,17/08/23,Recoverable VAT control,Balance Sheet,CGI IT UK Ltd,GB014111407,"18,352.34",Y
Crown Prosecution Service ,17/08/23,IT services,Service Desk Contract,CGI IT UK Ltd,GB014111407,"91,761.72",
Crown Prosecution Service ,18/08/23,Crown Court Graduated Fee Scheme,London South Complex Casework Unit,Furnival Chambers,169413,"58,202.40",Y
Crown Prosecution Service ,18/08/23,Crown Court Graduated Fee Scheme,Wessex Crown Court Unit,Pump Court Chambers - 3 Pump Court,273434-AHO,"49,793.04",Y
Crown Prosecution Service ,18/08/23,Crown Court Graduated Fee Scheme,Thames Chiltern Crown Court Unit,Rose Court Chambers Limited,3549 PD AQIB,"31,074.00",Y
Crown Prosecution Service ,18/08/23,Crown Court Graduated Fee Scheme,Yorks and Humbs CC Legal,New Park Court Chambers Leeds,368801/AMKC,"35,290.32",Y
Crown Prosecution Service ,18/08/23,Crown Court Graduated Fee Scheme,North West Crown Court Hub,Exchange Chambers - Liverpool,600352 JRO CLAIM 5,"53,254.50",Y
Crown Prosecution Service ,21/08/23,Crown Court Very High Cost Cases Full Scheme,Cymru Wales Complex Casework Unit,Angel Chambers,107813/ DP,"31,704.76",Y
Crown Prosecution Service ,21/08/23,Crown Court Graduated Fee Scheme,South West Crown Court,Guildhall Chambers Bristol,201453 CQ,"32,672.10",Y
Crown Prosecution Service ,21/08/23,Crown Court Graduated Fee Scheme,Mersey Cheshire Crown Court Unit,Linenhall Chambers,324810/2,"25,581.48",Y
Crown Prosecution Service ,21/08/23,Data Communications,ICT Network Services,Vodafone Ltd formerly Cable and Wireless Milton Keynes,4034033,"28,356.94",Y
Crown Prosecution Service ,21/08/23,Crown Court Graduated Fee Scheme,North West Crown Court Hub,Exchange Chambers Leeds ,600352 - HWI CLAIM 7,"35,715.78",Y
Crown Prosecution Service ,21/08/23,Crown Court Graduated Fee Scheme,South East RASSO Unit,2 Bedford Row Chambers,DP 196577,"30,891.02",
Crown Prosecution Service ,22/08/23,Crown Court Graduated Fee Scheme,Thames and Chiltern Complex Casework Unit,6 Kings Bench Walk- Chambers of D Fisher & D Perry,103110 ESW,"58,310.04",Y
Crown Prosecution Service ,22/08/23,Crown Court Very High Cost Cases Full Scheme,Cymru Wales Complex Casework Unit,Iscoed Chambers,154641.10,"38,130.50",Y
Crown Prosecution Service ,22/08/23,Crown Court Graduated Fee Scheme,East Midlands Complex Casework Unit,36 Bedford Row,224434-SA-Trial,"32,316.00",Y
Crown Prosecution Service ,22/08/23,Crown Court Graduated Fee Scheme,Thames Chiltern Crown Court Unit,36 Bedford Row,225185/SG4,"30,087.60",Y
Crown Prosecution Service ,22/08/23,IT non capital software licences,Legal Reference and ICT Licenses,Oracle Corporation UK Ltd,460098217,"188,702.70",Y
Crown Prosecution Service ,22/08/23,Crown Court Graduated Fee Scheme,London South Crown Court Unit,Blackfriars Chambers,72162CM,"32,422.20",Y
Crown Prosecution Service ,22/08/23,Recoverable VAT control,Balance Sheet,FlyForm LTD Cardiff,INV-11482,"4,879.21",Y
Crown Prosecution Service ,22/08/23,IT services,DTS Programme Project Cost,FlyForm LTD Cardiff,INV-11482,"24,395.99",
Crown Prosecution Service ,23/08/23,Lease liability non current lease payments,Balance Sheet,Government Property Agency London,00000001/24813,"18,986.40",
Crown Prosecution Service ,23/08/23,National non domestic rates,Estate and FM: Programme,Government Property Agency London,00000001/24813,"7,552.00",
Crown Prosecution Service ,23/08/23,Landlord service charge,Estate and FM: Programme,Government Property Agency London,00000001/24813,"11,412.22",
Crown Prosecution Service ,23/08/23,Accommodation rental costs (non-IFRS16),Estate and FM: Programme,Government Property Agency London,00000001/24813,"6,275.56",Y
Crown Prosecution Service ,23/08/23,Accommodation rental costs (non-IFRS16),Estate and FM: Programme,Government Property Agency London,00000001/25210,"6,402.24",Y
Crown Prosecution Service ,23/08/23,National non domestic rates,Estate and FM: Programme,Government Property Agency London,00000001/25210,"4,156.00",
Crown Prosecution Service ,23/08/23,Lease liability non current lease payments,Balance Sheet,Government Property Agency London,00000001/25210,"6,002.47",
Crown Prosecution Service ,23/08/23,Landlord service charge,Estate and FM: Programme,Government Property Agency London,00000001/25210,"18,659.77",
Crown Prosecution Service ,23/08/23,Crown Court Graduated Fee Scheme,West Midlands Complex Casework Unit,6 Pump Court The Chambers of Mr Stephen Hockman,162450/BI2,"30,582.36",Y
Crown Prosecution Service ,23/08/23,Crown Court Graduated Fee Scheme,West Midlands Complex Casework Unit,6 Pump Court The Chambers of Mr Stephen Hockman,162450/RB2,"60,495.24",Y
Crown Prosecution Service ,23/08/23,Crown Court Graduated Fee Scheme,SEOC Team 2,Seven Bedford Row,200878,"42,835.32",Y
Crown Prosecution Service ,23/08/23,Conference Organisation,IAP Conference,Calder Communications Ltd Leeds,498244,"97,701.00",Y
Crown Prosecution Service ,24/08/23,Crown Court Graduated Fee Scheme,London North Complex Casework Unit,2 Hare Court Chambers -Chambers of Orlando Pownall,120992 / BON,"41,205.66",Y
Crown Prosecution Service ,24/08/23,Crown Court Very High Cost Cases Full Scheme,RWD North Unit,Exchange Chambers Leeds ,535033 - AH JUNE 23,"34,552.37",Y
Crown Prosecution Service ,24/08/23,Crown Court Graduated Fee Scheme,Yorkshire and Humberside Complex Casework Unit,Exchange Chambers Leeds ,627256 - STG CLAIM 6,"30,847.20",Y
Crown Prosecution Service ,24/08/23,Crown Court Graduated Fee Scheme,London South Crown Court Unit,Deka Chambers Ltd,CH374339,"31,313.40",Y
Crown Prosecution Service ,24/08/23,UK Hotels,CFO Commercial,Clarity Travel Management,CPSHQ200823,976.50,Y
Crown Prosecution Service ,24/08/23,UK National rail travel,Corporate Communication,Clarity Travel Management,CPSHQ200823,"2,034.00",
Crown Prosecution Service ,24/08/23,UK Hotels,Strategy and Policy,Clarity Travel Management,CPSHQ200823,"1,857.45",Y
Crown Prosecution Service ,24/08/23,UK Hotels,Chief Finance Officer,Clarity Travel Management,CPSHQ200823,146.50,Y
Crown Prosecution Service ,24/08/23,UK Hotels,PF Learning and Development General,Clarity Travel Management,CPSHQ200823,"1,536.60",Y
Crown Prosecution Service ,24/08/23,UK Hotels,CFO Strategic Financial Planning,Clarity Travel Management,CPSHQ200823,110.50,Y
Crown Prosecution Service ,24/08/23,UK Hotels,DID DTS Change,Clarity Travel Management,CPSHQ200823,"1,127.47",Y
Crown Prosecution Service ,24/08/23,UK Hotels,CFO Finance Operations,Clarity Travel Management,CPSHQ200823,94.50,Y
Crown Prosecution Service ,24/08/23,UK Hotels,Permanent Transfer Costs,Clarity Travel Management,CPSHQ200823,320.01,Y
Crown Prosecution Service ,24/08/23,UK Hotels,PF Resourcing,Clarity Travel Management,CPSHQ200823,342.00,Y
Crown Prosecution Service ,24/08/23,UK Hotels,Operational Change,Clarity Travel Management,CPSHQ200823,156.00,Y
Crown Prosecution Service ,24/08/23,UK Hotels,DID DTS Technology,Clarity Travel Management,CPSHQ200823,755.40,Y
Crown Prosecution Service ,24/08/23,UK Hotels,CFO Estates,Clarity Travel Management,CPSHQ200823,467.92,Y
Crown Prosecution Service ,24/08/23,UK Hotels,DID Operational Process,Clarity Travel Management,CPSHQ200823,980.01,Y
Crown Prosecution Service ,24/08/23,UK Hotels,PF HR Business Management,Clarity Travel Management,CPSHQ200823,296.98,Y
Crown Prosecution Service ,24/08/23,UK Hotels,DTUS,Clarity Travel Management,CPSHQ200823,89.01,Y
Crown Prosecution Service ,24/08/23,UK National rail travel,Central Operational Training,Clarity Travel Management,CPSHQ200823,103.30,
Crown Prosecution Service ,24/08/23,UK National rail travel,PF HR Operations,Clarity Travel Management,CPSHQ200823,21.00,
Crown Prosecution Service ,24/08/23,UK National rail travel,PF Learning and Development General,Clarity Travel Management,CPSHQ200823,"1,104.30",
Crown Prosecution Service ,24/08/23,UK National rail travel,Permanent Transfer Costs,Clarity Travel Management,CPSHQ200823,21.70,
Crown Prosecution Service ,24/08/23,UK National rail travel,Victim Transformation Prog,Clarity Travel Management,CPSHQ200823,576.60,
Crown Prosecution Service ,24/08/23,UK National rail travel,DID DTS Technology,Clarity Travel Management,CPSHQ200823,740.70,
Crown Prosecution Service ,24/08/23,UK National rail travel,PF Resourcing,Clarity Travel Management,CPSHQ200823,329.70,
Crown Prosecution Service ,24/08/23,UK National rail travel,DID Operational Process,Clarity Travel Management,CPSHQ200823,681.00,
Crown Prosecution Service ,24/08/23,UK National rail travel,DID Security and Information,Clarity Travel Management,CPSHQ200823,"1,079.70",
Crown Prosecution Service ,24/08/23,UK National rail travel,Compliance and Assurance,Clarity Travel Management,CPSHQ200823,261.40,
Crown Prosecution Service ,24/08/23,UK National rail travel,Operational Change,Clarity Travel Management,CPSHQ200823,450.40,
Crown Prosecution Service ,24/08/23,UK National rail travel,CFO Fin System Change and Costings,Clarity Travel Management,CPSHQ200823,143.60,
Crown Prosecution Service ,24/08/23,UK National rail travel,Director of Legal Services,Clarity Travel Management,CPSHQ200823,"1,931.50",
Crown Prosecution Service ,24/08/23,UK National rail travel,Strategy and Policy,Clarity Travel Management,CPSHQ200823,"2,223.95",
Crown Prosecution Service ,24/08/23,UK National rail travel,PF Analytics and Workforce Plan,Clarity Travel Management,CPSHQ200823,292.90,
Crown Prosecution Service ,24/08/23,UK National rail travel,Operational Business Support,Clarity Travel Management,CPSHQ200823,139.30,
Crown Prosecution Service ,24/08/23,UK National rail travel,CFO Commercial,Clarity Travel Management,CPSHQ200823,640.70,
Crown Prosecution Service ,24/08/23,UK National rail travel,PF HR Business Management,Clarity Travel Management,CPSHQ200823,198.00,
Crown Prosecution Service ,24/08/23,UK National rail travel,Court Business Unit,Clarity Travel Management,CPSHQ200823,356.30,
Crown Prosecution Service ,24/08/23,UK National rail travel,Private Office,Clarity Travel Management,CPSHQ200823,234.50,
Crown Prosecution Service ,24/08/23,UK National rail travel,Press Office,Clarity Travel Management,CPSHQ200823,376.50,
Crown Prosecution Service ,24/08/23,UK National rail travel,PF HR Systems and Information,Clarity Travel Management,CPSHQ200823,466.10,
Crown Prosecution Service ,24/08/23,UK National rail travel,Central Legal Training Team,Clarity Travel Management,CPSHQ200823,851.05,
Crown Prosecution Service ,24/08/23,UK National rail travel,DID Central Leadership Team,Clarity Travel Management,CPSHQ200823,156.65,
Crown Prosecution Service ,24/08/23,UK National rail travel,PF HR Business Partnering,Clarity Travel Management,CPSHQ200823,189.50,
Crown Prosecution Service ,24/08/23,UK National rail travel,CFO Estates,Clarity Travel Management,CPSHQ200823,428.20,
Crown Prosecution Service ,24/08/23,UK National rail travel,DID DTS Change,Clarity Travel Management,CPSHQ200823,538.05,
Crown Prosecution Service ,24/08/23,UK National rail travel,Head of Communication,Clarity Travel Management,CPSHQ200823,163.60,
Crown Prosecution Service ,24/08/23,Crown Court Graduated Fee Scheme,West Midlands Complex Casework Unit,9 St John Street (Nine),GMW.421482,"25,784.28",Y
Crown Prosecution Service ,24/08/23,Crown Court Graduated Fee Scheme,West Midlands Complex Casework Unit,QEB Hollis Whiteman Chambers,JE 112781 a,"78,730.08",Y
Crown Prosecution Service ,24/08/23,Crown Court Graduated Fee Scheme,West Midlands Complex Casework Unit,QEB Hollis Whiteman Chambers,TD 112781 a,"42,083.82",Y
Crown Prosecution Service ,25/08/23,Crown Court Graduated Fee Scheme,London North Crown Court Unit,2 Hare Court Chambers -Chambers of Orlando Pownall,122593,"32,388.00",Y
Crown Prosecution Service ,25/08/23,Crown Court Graduated Fee Scheme,London South Complex Casework Unit,Crucible Law Limited,146065 EAA,"39,192.00",Y
Crown Prosecution Service ,25/08/23,Crown Court Graduated Fee Scheme,London North Complex Casework Unit,5 King's Bench Walk,AOKC178104,"38,799.54",Y
Crown Prosecution Service ,25/08/23,Crown Court Graduated Fee Scheme,London North Crown Court Unit,5 King's Bench Walk,DRE177704,"33,413.76",Y
Crown Prosecution Service ,25/08/23,Crown Court Graduated Fee Scheme,London North Crown Court Unit,5 King's Bench Walk,JB177704,"49,989.24",Y
Crown Prosecution Service ,25/08/23,Crown Court Graduated Fee Scheme,London North Complex Casework Unit,QEB Hollis Whiteman Chambers,PE 112935 a,"33,427.20",Y
Crown Prosecution Service ,25/08/23,General Professional Services,IAP Conference,Bray Leino Ltd Devon,SI0039262BLE,"33,547.68",Y
Crown Prosecution Service ,25/08/23,General Professional Services,IAP Conference,Bray Leino Ltd Devon,SI0039263BLE,"146,461.72",Y
Crown Prosecution Service ,25/08/23,General Professional Services,IAP Conference,Bray Leino Ltd Devon,SI0039264BLE,"28,861.36",Y
Crown Prosecution Service ,25/08/23,Crown Court Graduated Fee Scheme,London North Complex Casework Unit,Deka Chambers Ltd,TL380201,"26,582.40",Y
Crown Prosecution Service ,29/08/23,Crown Court Very High Cost Cases Full Scheme,Mersey Cheshire Complex Casework Unit,Harrington Street Chambers,11096572/SDS43,"25,748.52",
Crown Prosecution Service ,29/08/23,Crown Court Graduated Fee Scheme,North West Crown Court Hub,Harrington Street Chambers,1174333/AF,"25,456.80",
Crown Prosecution Service ,29/08/23,Crown Court Graduated Fee Scheme,North East Crown Court Unit,Fountain Chambers,118736 JMH1,"28,642.80",Y
Crown Prosecution Service ,29/08/23,Crown Court Graduated Fee Scheme,North East Complex Casework Unit,Kings Bench Walk Leeds,128951(3)/IM,"32,641.32",Y
Crown Prosecution Service ,29/08/23,Crown Court Graduated Fee Scheme,London North Complex Casework Unit,23 Essex Street Chambers,181131-KL-3,"36,831.90",Y
Crown Prosecution Service ,29/08/23,Crown Court Graduated Fee Scheme,East Midlands Crown Court Section,36 Bedford Row,219336-LJ/NJM Re-tr,"52,716.18",Y
Crown Prosecution Service ,29/08/23,Recoverable VAT control,Balance Sheet,AVR Transcription Ltd Bolton,36533-JUL23,"11,425.51",Y
Crown Prosecution Service ,29/08/23,Transcriptions and Translation,Other Corporate Programme Payments,AVR Transcription Ltd Bolton,36533-JUL23,"57,127.55",
Crown Prosecution Service ,30/08/23,Crown Court Graduated Fee Scheme,West Midlands Complex Casework Unit,Red Lion Chambers (18 RLC),163805SStrialfees,"39,464.28",Y
Crown Prosecution Service ,30/08/23,Crown Court Graduated Fee Scheme,London North Complex Casework Unit,23 Essex Street Chambers,196756-LWI-TRIAL,"28,293.60",Y
Crown Prosecution Service ,30/08/23,IT services,DTS Programme Project Cost,Accenture (UK) Ltd London,3003623130,"42,000.00",
Crown Prosecution Service ,30/08/23,Recoverable VAT control,Balance Sheet,Accenture (UK) Ltd London,3003623130,"8,400.00",Y
Crown Prosecution Service ,30/08/23,Recoverable VAT control,Balance Sheet,Accenture (UK) Ltd London,3003623980,"18,875.00",Y
Crown Prosecution Service ,30/08/23,IT services,DTS Programme Project Cost,Accenture (UK) Ltd London,3003623980,"94,375.00",
Crown Prosecution Service ,30/08/23,IT services,DTS Programme Project Cost,Accenture (UK) Ltd London,3003624084,"87,700.50",Y
Crown Prosecution Service ,30/08/23,Recoverable VAT control,Balance Sheet,Accenture (UK) Ltd London,3003624277,"8,400.00",Y
Crown Prosecution Service ,30/08/23,IT services,DTS Programme Project Cost,Accenture (UK) Ltd London,3003624277,"42,000.00",
Crown Prosecution Service ,30/08/23,IT services,ICT Network Services,Vodafone Ltd formerly Cable and Wireless Milton Keynes,4034943,"34,191.64",Y
Crown Prosecution Service ,30/08/23,General Professional Services,DTS Programme Project Cost,NTT Data UK Ltd London,5029143,"92,622.00",Y
Crown Prosecution Service ,30/08/23,General Professional Services,DTS Programme Project Cost,NTT Data UK Ltd London,5029144,"182,970.00",Y
Crown Prosecution Service ,30/08/23,General Professional Services,DTS Programme Project Cost,NTT Data UK Ltd London,5029162,"524,641.93",Y
Crown Prosecution Service ,30/08/23,Crown Court Graduated Fee Scheme,London South Crown Court Unit,QEB Hollis Whiteman Chambers,CA 114489 a,"28,306.80",Y
Crown Prosecution Service ,30/08/23,Recoverable VAT control,Balance Sheet,CGI IT UK Ltd,GB014111827,"171,511.28",Y
Crown Prosecution Service ,30/08/23,Intangibles asset purchase clearing CMS,DTS ICT Capital Expenditure,CGI IT UK Ltd,GB014111827,"857,556.39",
Crown Prosecution Service ,30/08/23,IT services,DTS Programme Project Cost,eSynergy Solutions Ltd,INV00001342,"75,566.12",Y
Crown Prosecution Service ,30/08/23,IT services,DTS Programme Project Cost,eSynergy Solutions Ltd,INV00001344,"25,200.00",Y
Crown Prosecution Service ,30/08/23,IT services,DTS Programme Project Cost,eSynergy Solutions Ltd,INV00001345,"136,050.00",Y
Crown Prosecution Service ,30/08/23,IT services,End User Computing Contract,ACS Systems UK Limited Northampton,INV434672,"27,690.54",Y
Crown Prosecution Service ,30/08/23,Recoverable VAT control,Balance Sheet,Outsystems LTD London,INVGB202300217,"16,150.00",Y
Crown Prosecution Service ,30/08/23,IT services,DTS Programme Project Cost,Outsystems LTD London,INVGB202300217,"80,750.02",
Crown Prosecution Service ,31/08/23,File Storage,DID Security and Information,Iron Mountain Ltd,0777716,"70,424.59",
Crown Prosecution Service ,31/08/23,Recoverable VAT control,Balance Sheet,Iron Mountain Ltd,0777716,"14,084.92",Y
Crown Prosecution Service ,31/08/23,Crown Court Graduated Fee Scheme,Thames and Chiltern Complex Casework Unit,6 Kings Bench Walk- Chambers of D Fisher & D Perry,104680 DEN1,"77,732.28",Y
Crown Prosecution Service ,31/08/23,Crown Court Graduated Fee Scheme,Thames and Chiltern Complex Casework Unit,6 Kings Bench Walk- Chambers of D Fisher & D Perry,104680 LH1,"39,506.52",Y
Crown Prosecution Service ,31/08/23,Crown Court Very High Cost Cases Full Scheme,RWD North Unit,St Pauls Chambers Leeds,143722 2 30,"27,840.10",Y
